[Event "Titled Tuesday Blitz April 05 Late 2022"]
[White "Swicarz, Maciej"]
[Black "Arnold, Ken"]
[WhiteFideId "1113585"]
[BlackFideId "2056836"]
[WhiteElo "2524"]
[BlackElo "2252"]
[Result "0-1"]
[Round "09"]
[TimeControl "180+1"]
[Date "2022.04.06"]
[WhiteClock "0:00:15"]
[BlackClock "0:00:11"]

1. c4 {[%clk 0:02:44]}  e6 {[%clk 0:02:58]} 2. Nc3 {[%clk 0:02:43]}  Nf6 {[%clk 0:02:58]} 3. e4 {[%clk 0:02:43]}  d5 {[%clk 0:02:57]} 4. e5 {[%clk 0:02:43]}  d4 {[%clk 0:02:54]} 5. exf6 {[%clk 0:02:42]}  dxc3 {[%clk 0:02:54]} 6. bxc3 {[%clk 0:02:43]}  Qxf6 {[%clk 0:02:49]} 7. Nf3 {[%clk 0:02:43]}  c5 {[%clk 0:02:49]} 8. d4 {[%clk 0:02:40]}  h6 {[%clk 0:02:44]} 9. Bd3 {[%clk 0:02:38]}  cxd4 {[%clk 0:02:42]} 10. cxd4 {[%clk 0:02:37]}  Nc6 {[%clk 0:02:43]} 11. Be4 {[%clk 0:02:24]}  Bb4+ {[%clk 0:02:41]} 12. Bd2 {[%clk 0:02:23]}  O-O {[%clk 0:02:32]} 13. Bxc6 {[%clk 0:02:16]}  Bxd2+ {[%clk 0:02:31]} 14. Qxd2 {[%clk 0:02:17]}  bxc6 {[%clk 0:02:31]} 15. Ne5 {[%clk 0:02:11]}  c5 {[%clk 0:02:28]} 16. O-O {[%clk 0:02:08]}  cxd4 {[%clk 0:02:26]} 17. Qxd4 {[%clk 0:02:08]}  Rd8 {[%clk 0:02:24]} 18. Qc3 {[%clk 0:02:07]}  Bb7 {[%clk 0:02:20]} 19. Rfd1 {[%clk 0:02:02]}  Qg5 {[%clk 0:02:15]} 20. Qg3 {[%clk 0:01:55]}  Rxd1+ {[%clk 0:01:58]} 21. Rxd1 {[%clk 0:01:54]}  Rd8 {[%clk 0:01:56]} 22. Rxd8+ {[%clk 0:01:38]}  Qxd8 {[%clk 0:01:55]} 23. h4 {[%clk 0:01:38]}  Qd1+ {[%clk 0:01:52]} 24. Kh2 {[%clk 0:01:37]}  Qd4 {[%clk 0:01:44]} 25. Ng4 {[%clk 0:01:27]}  Kh7 {[%clk 0:01:30]} 26. Ne3 {[%clk 0:01:26]}  f5 {[%clk 0:01:24]} 27. Qc7 {[%clk 0:01:21]}  Qxh4+ {[%clk 0:01:17]} 28. Kg1 {[%clk 0:01:20]}  Be4 {[%clk 0:01:12]} 29. Qe5 {[%clk 0:00:59]}  Qf6 {[%clk 0:00:58]} 30. Qxf6 {[%clk 0:00:59]}  gxf6 {[%clk 0:00:57]} 31. c5 {[%clk 0:00:58]}  Kg7 {[%clk 0:00:51]} 32. f3 {[%clk 0:00:58]}  Bc6 {[%clk 0:00:49]} 33. Nc4 {[%clk 0:00:52]}  Kf7 {[%clk 0:00:47]} 34. Na5 {[%clk 0:00:51]}  Bd5 {[%clk 0:00:45]} 35. a3 {[%clk 0:00:50]}  Ke7 {[%clk 0:00:45]} 36. Kf2 {[%clk 0:00:50]}  Kd7 {[%clk 0:00:44]} 37. Ke3 {[%clk 0:00:51]}  e5 {[%clk 0:00:44]} 38. Kd3 {[%clk 0:00:46]}  f4 {[%clk 0:00:42]} 39. Ke2 {[%clk 0:00:43]}  f5 {[%clk 0:00:41]} 40. Kf2 {[%clk 0:00:39]}  h5 {[%clk 0:00:41]} 41. Ke2 {[%clk 0:00:39]}  h4 {[%clk 0:00:41]} 42. Kf2 {[%clk 0:00:39]}  e4 {[%clk 0:00:41]} 43. fxe4 {[%clk 0:00:35]}  fxe4 {[%clk 0:00:41]} 44. Ke2 {[%clk 0:00:34]}  e3 {[%clk 0:00:39]} 45. Kf1 {[%clk 0:00:33]}  Ke6 {[%clk 0:00:36]} 46. Kg1 {[%clk 0:00:31]}  Ke5 {[%clk 0:00:25]} 47. Kf1 {[%clk 0:00:30]}  Kd4 {[%clk 0:00:25]} 48. c6 {[%clk 0:00:30]}  Be6 {[%clk 0:00:20]} 49. c7 {[%clk 0:00:22]}  Kc5 {[%clk 0:00:18]} 50. Nb3+ {[%clk 0:00:19]}  Kb6 {[%clk 0:00:17]} 51. Nd4 {[%clk 0:00:19]}  Bc4+ {[%clk 0:00:16]} 52. Ke1 {[%clk 0:00:17]}  Kxc7 {[%clk 0:00:15]} 53. Nf3 {[%clk 0:00:17]}  Bd5 {[%clk 0:00:09]} 54. Nxh4 {[%clk 0:00:16]}  Be4 {[%clk 0:00:09]} 55. Ke2 {[%clk 0:00:14]}  Kb6 {[%clk 0:00:09]} 56. g3 {[%clk 0:00:14]}  fxg3 {[%clk 0:00:08]} 57. Kxe3 {[%clk 0:00:14]}  g2 {[%clk 0:00:09]} 58. Kf2 {[%clk 0:00:14]}  Ka5 {[%clk 0:00:08]} 59. Nxg2 {[%clk 0:00:13]}  Bxg2 {[%clk 0:00:09]} 60. Kxg2 {[%clk 0:00:14]}  Ka4 {[%clk 0:00:09]} 61. Kf2 {[%clk 0:00:14]}  Kxa3 {[%clk 0:00:10]} 62. Ke1 {[%clk 0:00:15]}  Kb2 {[%clk 0:00:10]} 63. Kd1 {[%clk 0:00:15]}  a5 {[%clk 0:00:11]} 0-1


[Site "https://www.chess.com"]

[Event "Titled Tuesday Blitz April 05 Late 2022"]
[White "Aldokhin, Ivan"]
[Black "Pakleza, Zbigniew"]
[WhiteFideId "24115720"]
[BlackFideId "1119290"]
[WhiteElo "2231"]
[BlackElo "2467"]
[Result "0-1"]
[Round "10"]
[TimeControl "180+1"]
[Date "2022.04.05"]
[WhiteClock "0:00:09"]
[BlackClock "0:01:06"]

1. e4 {[%clk 0:03:00]}  d6 {[%clk 0:02:58]} 2. d4 {[%clk 0:03:00]}  Nf6 {[%clk 0:02:59]} 3. Nc3 {[%clk 0:03:01]}  c6 {[%clk 0:02:58]} 4. f4 {[%clk 0:03:00]}  Qb6 {[%clk 0:02:59]} 5. Nf3 {[%clk 0:02:58]}  Bg4 {[%clk 0:02:58]} 6. e5 {[%clk 0:02:46]}  Nd5 {[%clk 0:02:58]} 7. Nxd5 {[%clk 0:02:42]}  cxd5 {[%clk 0:02:59]} 8. c3 {[%clk 0:02:42]}  Nc6 {[%clk 0:02:55]} 9. Bd3 {[%clk 0:02:41]}  e6 {[%clk 0:02:55]} 10. a4 {[%clk 0:02:33]}  g6 {[%clk 0:02:49]} 11. b4 {[%clk 0:02:28]}  Be7 {[%clk 0:02:49]} 12. a5 {[%clk 0:02:26]}  Qc7 {[%clk 0:02:49]} 13. O-O {[%clk 0:02:16]}  a6 {[%clk 0:02:49]} 14. h3 {[%clk 0:02:13]}  Bf5 {[%clk 0:02:49]} 15. g4 {[%clk 0:02:04]}  Bxd3 {[%clk 0:02:47]} 16. Qxd3 {[%clk 0:02:05]}  h5 {[%clk 0:02:45]} 17. Bd2 {[%clk 0:02:02]}  Na7 {[%clk 0:02:44]} 18. f5 {[%clk 0:01:52]}  hxg4 {[%clk 0:02:43]} 19. hxg4 {[%clk 0:01:44]}  gxf5 {[%clk 0:02:42]} 20. gxf5 {[%clk 0:01:45]}  O-O-O {[%clk 0:02:39]} 21. f6 {[%clk 0:01:40]}  dxe5 {[%clk 0:02:10]} 22. dxe5 {[%clk 0:01:02]}  Bxf6 {[%clk 0:01:52]} 23. Bf4 {[%clk 0:01:02]}  Nc6 {[%clk 0:01:37]} 24. Qe3 {[%clk 0:00:58]}  Bh4 {[%clk 0:01:24]} 25. Rfb1 {[%clk 0:00:39]}  Rdg8+ {[%clk 0:01:15]} 26. Kf1 {[%clk 0:00:40]}  Ne7 {[%clk 0:01:16]} 27. Qd3 {[%clk 0:00:19]}  Bg3 {[%clk 0:01:14]} 28. Be3 {[%clk 0:00:16]}  Nf5 {[%clk 0:01:11]} 29. b5 {[%clk 0:00:12]}  Qc4 {[%clk 0:01:11]} 30. Ke2 {[%clk 0:00:10]}  Nxe3 {[%clk 0:01:06]} 31. Kxe3 {[%clk 0:00:09]}  Bf4+ {[%clk 0:01:06]} 32. Ke2 {[%clk 0:00:09]}  Rg2+ {[%clk 0:01:06]} 0-1


[Site "https://www.chess.com"]

[Event "Titled Tuesday Blitz April 05 Late 2022"]
[White "Andreikin, Dmitry"]
[Black "Sadhwani, Raunak"]
[WhiteFideId "4158814"]
[BlackFideId "35093487"]
[WhiteElo "2736"]
[BlackElo "2616"]
[Result "0-1"]
[Round "10"]
[TimeControl "180+1"]
[Date "2022.04.05"]
[WhiteClock "0:00:16"]
[BlackClock "0:00:08"]

1. d4 {[%clk 0:03:00]}  Nf6 {[%clk 0:02:59]} 2. c4 {[%clk 0:03:00]}  g6 {[%clk 0:03:00]} 3. Nc3 {[%clk 0:03:00]}  Bg7 {[%clk 0:03:00]} 4. e4 {[%clk 0:03:00]}  d6 {[%clk 0:03:01]} 5. h3 {[%clk 0:03:01]}  O-O {[%clk 0:02:59]} 6. Be3 {[%clk 0:03:01]}  c5 {[%clk 0:02:58]} 7. Nf3 {[%clk 0:03:00]}  Qa5 {[%clk 0:02:56]} 8. Bd3 {[%clk 0:02:55]}  cxd4 {[%clk 0:02:53]} 9. Nxd4 {[%clk 0:02:55]}  Nc6 {[%clk 0:02:50]} 10. O-O {[%clk 0:02:55]}  Nxd4 {[%clk 0:02:43]} 11. Bxd4 {[%clk 0:02:55]}  Bd7 {[%clk 0:02:42]} 12. Re1 {[%clk 0:02:51]}  Bc6 {[%clk 0:02:26]} 13. Rb1 {[%clk 0:02:40]}  Qh5 {[%clk 0:02:10]} 14. Be2 {[%clk 0:02:23]}  Qh4 {[%clk 0:02:08]} 15. Bf3 {[%clk 0:02:21]}  Nd7 {[%clk 0:01:45]} 16. Bxg7 {[%clk 0:02:17]}  Kxg7 {[%clk 0:01:46]} 17. b4 {[%clk 0:02:09]}  Ne5 {[%clk 0:01:46]} 18. Be2 {[%clk 0:01:53]}  Rac8 {[%clk 0:01:45]} 19. b5 {[%clk 0:01:36]}  Bd7 {[%clk 0:01:34]} 20. Nd5 {[%clk 0:01:30]}  Be6 {[%clk 0:01:23]} 21. Qd4 {[%clk 0:01:25]}  Bxd5 {[%clk 0:01:20]} 22. cxd5 {[%clk 0:01:25]}  Rc5 {[%clk 0:01:07]} 23. b6 {[%clk 0:01:25]}  Qf6 {[%clk 0:00:58]} 24. Qe3 {[%clk 0:01:20]}  axb6 {[%clk 0:00:55]} 25. Rxb6 {[%clk 0:01:18]}  Ra8 {[%clk 0:00:53]} 26. a3 {[%clk 0:01:14]}  Nc4 {[%clk 0:00:39]} 27. Bxc4 {[%clk 0:01:05]}  Rxc4 {[%clk 0:00:40]} 28. Rxb7 {[%clk 0:01:05]}  Rc3 {[%clk 0:00:39]} 29. e5 {[%clk 0:01:01]}  Qxe5 {[%clk 0:00:26]} 30. Qxe5+ {[%clk 0:00:58]}  dxe5 {[%clk 0:00:26]} 31. Rxe5 {[%clk 0:00:58]}  Rcxa3 {[%clk 0:00:23]} 32. Rexe7 {[%clk 0:00:57]}  Rf8 {[%clk 0:00:24]} 33. h4 {[%clk 0:00:38]}  Rd3 {[%clk 0:00:24]} 34. Red7 {[%clk 0:00:38]}  h5 {[%clk 0:00:23]} 35. g3 {[%clk 0:00:38]}  Kf6 {[%clk 0:00:17]} 36. Kg2 {[%clk 0:00:37]}  Ke5 {[%clk 0:00:17]} 37. Re7+ {[%clk 0:00:31]}  Kf6 {[%clk 0:00:16]} 38. Red7 {[%clk 0:00:29]}  Ke5 {[%clk 0:00:16]} 39. Rb5 {[%clk 0:00:27]}  Kf6 {[%clk 0:00:17]} 40. Rb4 {[%clk 0:00:27]}  Ke5 {[%clk 0:00:15]} 41. Rb1 {[%clk 0:00:16]}  Kf6 {[%clk 0:00:10]} 42. Re1 {[%clk 0:00:16]}  Rb8 {[%clk 0:00:08]} 0-1


[Site "https://www.chess.com"]

[Event "Titled Tuesday Blitz April 05 Late 2022"]
[White "Arabidze, Meri"]
[Black "Chernomordik, Pavel"]
[WhiteFideId "13604040"]
[BlackFideId "2804530"]
[WhiteElo "2599"]
[BlackElo "2460"]
[Result "1-0"]
[Round "10"]
[TimeControl "180+1"]
[Date "2022.04.06"]
[WhiteClock "0:01:27"]
[BlackClock "0:00:12"]

1. d4 {[%clk 0:02:55]}  g6 {[%clk 0:03:00]} 2. g3 {[%clk 0:02:55]}  Bg7 {[%clk 0:03:01]} 3. Bg2 {[%clk 0:02:56]}  d6 {[%clk 0:03:00]} 4. Nf3 {[%clk 0:02:56]}  Nf6 {[%clk 0:03:00]} 5. O-O {[%clk 0:02:57]}  O-O {[%clk 0:03:00]} 6. a4 {[%clk 0:02:58]}  c6 {[%clk 0:02:56]} 7. a5 {[%clk 0:02:57]}  Qc7 {[%clk 0:02:54]} 8. c3 {[%clk 0:02:57]}  e5 {[%clk 0:02:53]} 9. Re1 {[%clk 0:02:55]}  Bf5 {[%clk 0:02:49]} 10. Nbd2 {[%clk 0:02:54]}  Nbd7 {[%clk 0:02:43]} 11. e4 {[%clk 0:02:54]}  Be6 {[%clk 0:02:35]} 12. Ng5 {[%clk 0:02:52]}  Bg4 {[%clk 0:02:15]} 13. f3 {[%clk 0:02:51]}  h6 {[%clk 0:02:15]} 14. Nxf7 {[%clk 0:02:47]}  Bxf3 {[%clk 0:02:10]} 15. Nxh6+ {[%clk 0:02:46]}  Bxh6 {[%clk 0:02:07]} 16. Nxf3 {[%clk 0:02:47]}  Bxc1 {[%clk 0:02:01]} 17. Qxc1 {[%clk 0:02:48]}  Kg7 {[%clk 0:02:01]} 18. Nh4 {[%clk 0:02:44]}  exd4 {[%clk 0:01:57]} 19. Qg5 {[%clk 0:02:43]}  Ne5 {[%clk 0:01:54]} 20. cxd4 {[%clk 0:02:41]}  Nh7 {[%clk 0:01:55]} 21. Qd2 {[%clk 0:02:32]}  Ng4 {[%clk 0:01:45]} 22. h3 {[%clk 0:02:30]}  Ngf6 {[%clk 0:01:27]} 23. e5 {[%clk 0:02:30]}  Nh5 {[%clk 0:01:25]} 24. Qd3 {[%clk 0:02:22]}  Qf7 {[%clk 0:01:16]} 25. exd6 {[%clk 0:02:11]}  Qf6 {[%clk 0:01:04]} 26. Re7+ {[%clk 0:02:10]}  Kh6 {[%clk 0:01:01]} 27. Qe3+ {[%clk 0:02:03]}  Ng5 {[%clk 0:00:58]} 28. Nf3 {[%clk 0:01:51]}  Nxg3 {[%clk 0:00:52]} 29. Nxg5 {[%clk 0:01:48]}  Ne2+ {[%clk 0:00:27]} 30. Qxe2 {[%clk 0:01:34]}  Qxg5 {[%clk 0:00:24]} 31. Qe5 {[%clk 0:01:33]}  Rf5 {[%clk 0:00:13]} 32. Qg7+ {[%clk 0:01:31]}  Kh5 {[%clk 0:00:14]} 33. Qh7+ {[%clk 0:01:31]}  Qh6 {[%clk 0:00:14]} 34. Qxh6+ {[%clk 0:01:29]}  Kxh6 {[%clk 0:00:13]} 35. d7 {[%clk 0:01:30]}  Rd8 {[%clk 0:00:12]} 36. a6 {[%clk 0:01:27]} 1-0


[Site "https://www.chess.com"]

[Event "Titled Tuesday Blitz April 05 Late 2022"]
[White "Ardila, Oscar Humberto"]
[Black "Hernandez Bermudez, Ulises Eduardo"]
[WhiteFideId "4404742"]
[BlackFideId "3902510"]
[WhiteElo "1983"]
[BlackElo "2056"]
[Result "0-1"]
[Round "10"]
[TimeControl "180+1"]
[Date "2022.04.06"]
[WhiteClock "0:00:23"]
[BlackClock "0:00:37"]

1. d4 {[%clk 0:01:59]}  Nf6 {[%clk 0:02:51]} 2. c4 {[%clk 0:01:58]}  g6 {[%clk 0:02:36]} 3. Nc3 {[%clk 0:01:57]}  Bg7 {[%clk 0:02:35]} 4. Nf3 {[%clk 0:01:53]}  d6 {[%clk 0:02:26]} 5. e4 {[%clk 0:01:53]}  O-O {[%clk 0:02:26]} 6. Be2 {[%clk 0:01:52]}  e5 {[%clk 0:02:25]} 7. d5 {[%clk 0:01:51]}  a5 {[%clk 0:02:16]} 8. O-O {[%clk 0:01:51]}  Ne8 {[%clk 0:02:10]} 9. Bg5 {[%clk 0:01:49]}  f6 {[%clk 0:02:09]} 10. Bh4 {[%clk 0:01:49]}  Nd7 {[%clk 0:02:04]} 11. Qc2 {[%clk 0:01:47]}  h6 {[%clk 0:01:53]} 12. b3 {[%clk 0:01:42]}  g5 {[%clk 0:01:52]} 13. Bg3 {[%clk 0:01:42]}  f5 {[%clk 0:01:48]} 14. exf5 {[%clk 0:01:42]}  Nc5 {[%clk 0:01:48]} 15. Ne4 {[%clk 0:01:29]}  Bxf5 {[%clk 0:01:46]} 16. Nfd2 {[%clk 0:01:29]}  Nf6 {[%clk 0:01:41]} 17. Bd3 {[%clk 0:01:29]}  Nxd3 {[%clk 0:01:34]} 18. Qxd3 {[%clk 0:01:28]}  Qd7 {[%clk 0:01:27]} 19. Rae1 {[%clk 0:01:27]}  Bh7 {[%clk 0:01:20]} 20. Nxf6+ {[%clk 0:01:26]}  Rxf6 {[%clk 0:01:20]} 21. Ne4 {[%clk 0:01:26]}  Rf7 {[%clk 0:01:18]} 22. f3 {[%clk 0:01:25]}  Raf8 {[%clk 0:01:18]} 23. a3 {[%clk 0:01:24]}  c6 {[%clk 0:01:09]} 24. dxc6 {[%clk 0:01:22]}  Qxc6 {[%clk 0:01:08]} 25. Qd2 {[%clk 0:00:56]}  Bxe4 {[%clk 0:01:03]} 26. Rxe4 {[%clk 0:00:56]}  Qxe4 {[%clk 0:01:02]} 27. Re1 {[%clk 0:00:50]}  Qc6 {[%clk 0:01:02]} 28. Kh1 {[%clk 0:00:48]}  e4 {[%clk 0:00:59]} 29. Bxd6 {[%clk 0:00:43]}  Rd8 {[%clk 0:00:47]} 30. c5 {[%clk 0:00:42]}  exf3 {[%clk 0:00:47]} 31. h3 {[%clk 0:00:22]}  fxg2+ {[%clk 0:00:46]} 32. Qxg2 {[%clk 0:00:22]}  Qxg2+ {[%clk 0:00:45]} 33. Kxg2 {[%clk 0:00:23]}  Bf8 {[%clk 0:00:46]} 34. Re6 {[%clk 0:00:22]}  Bxd6 {[%clk 0:00:43]} 35. cxd6 {[%clk 0:00:23]}  Kg7 {[%clk 0:00:43]} 36. b4 {[%clk 0:00:22]}  axb4 {[%clk 0:00:39]} 37. axb4 {[%clk 0:00:23]}  Rfd7 {[%clk 0:00:38]} 38. Re5 {[%clk 0:00:23]}  b6 {[%clk 0:00:37]} 39. Rb5 {[%clk 0:00:24]}  Rxd6 {[%clk 0:00:37]} 40. Kg3 {[%clk 0:00:24]}  Kg6 {[%clk 0:00:37]} 41. Kf3 {[%clk 0:00:23]}  R8d7 {[%clk 0:00:37]} 42. Ke4 {[%clk 0:00:24]}  Rf7 {[%clk 0:00:37]} 43. Ke5 {[%clk 0:00:24]}  Rfd7 {[%clk 0:00:37]} 44. Ke4 {[%clk 0:00:21]}  Rf6 {[%clk 0:00:37]} 45. Ke3 {[%clk 0:00:18]}  Re7+ {[%clk 0:00:37]} 46. Kd4 {[%clk 0:00:17]}  Ree6 {[%clk 0:00:37]} 47. Rd5 {[%clk 0:00:16]}  Rd6 {[%clk 0:00:36]} 48. Ke5 {[%clk 0:00:15]}  Rxd5+ {[%clk 0:00:36]} 49. Kxd5 {[%clk 0:00:16]}  Rf3 {[%clk 0:00:36]} 50. b5 {[%clk 0:00:17]}  Rxh3 {[%clk 0:00:36]} 51. Kc6 {[%clk 0:00:17]}  Rb3 {[%clk 0:00:35]} 52. Kxb6 {[%clk 0:00:18]}  h5 {[%clk 0:00:36]} 53. Kc6 {[%clk 0:00:19]}  h4 {[%clk 0:00:37]} 54. b6 {[%clk 0:00:20]}  h3 {[%clk 0:00:37]} 55. b7 {[%clk 0:00:21]}  h2 {[%clk 0:00:38]} 56. Kc7 {[%clk 0:00:22]}  h1=Q {[%clk 0:00:37]} 57. b8=Q {[%clk 0:00:23]}  Qh2+ {[%clk 0:00:37]} 0-1


[Site "https://www.chess.com"]

[Event "Titled Tuesday Blitz April 05 Late 2022"]
[White "Ashiev, Eduard"]
[Black "Kostiukov, Alexandr"]
[WhiteFideId "4130090"]
[BlackFideId "14108100"]
[WhiteElo "2004"]
[BlackElo "2202"]
[Result "0-1"]
[Round "10"]
[TimeControl "180+1"]
[Date "2022.04.06"]
[WhiteClock "0:00:09"]
[BlackClock "0:00:02"]

1. d4 {[%clk 0:03:00]}  g6 {[%clk 0:02:59]} 2. e4 {[%clk 0:03:00]}  Bg7 {[%clk 0:02:59]} 3. Nc3 {[%clk 0:03:00]}  d6 {[%clk 0:03:00]} 4. f4 {[%clk 0:03:00]}  e6 {[%clk 0:02:56]} 5. Nf3 {[%clk 0:02:59]}  Ne7 {[%clk 0:02:56]} 6. Bd3 {[%clk 0:02:52]}  O-O {[%clk 0:02:56]} 7. O-O {[%clk 0:02:50]}  c5 {[%clk 0:02:56]} 8. dxc5 {[%clk 0:02:43]}  dxc5 {[%clk 0:02:54]} 9. Be3 {[%clk 0:02:42]}  b6 {[%clk 0:02:51]} 10. e5 {[%clk 0:02:42]}  Bb7 {[%clk 0:02:47]} 11. Be4 {[%clk 0:02:41]}  Bxe4 {[%clk 0:02:43]} 12. Nxe4 {[%clk 0:02:39]}  Nf5 {[%clk 0:02:36]} 13. Bf2 {[%clk 0:02:33]}  h5 {[%clk 0:02:25]} 14. c3 {[%clk 0:02:31]}  Qc7 {[%clk 0:02:14]} 15. Qe1 {[%clk 0:02:26]}  Nc6 {[%clk 0:02:08]} 16. h3 {[%clk 0:02:22]}  Rad8 {[%clk 0:01:55]} 17. g4 {[%clk 0:02:20]}  hxg4 {[%clk 0:01:55]} 18. hxg4 {[%clk 0:02:20]}  Nh6 {[%clk 0:01:50]} 19. g5 {[%clk 0:02:12]}  Nf5 {[%clk 0:01:43]} 20. Kg2 {[%clk 0:02:02]}  Rd3 {[%clk 0:01:37]} 21. Nh2 {[%clk 0:01:54]}  Rfd8 {[%clk 0:01:19]} 22. Ng4 {[%clk 0:01:52]}  Nce7 {[%clk 0:01:06]} 23. Rh1 {[%clk 0:01:37]}  Qc6 {[%clk 0:01:01]} 24. Kg1 {[%clk 0:01:33]}  Rf3 {[%clk 0:00:34]} 25. Qe2 {[%clk 0:01:04]}  Rxf4 {[%clk 0:00:33]} 26. Ngf6+ {[%clk 0:00:57]}  Kf8 {[%clk 0:00:20]} 27. Rd1 {[%clk 0:00:45]}  Nd5 {[%clk 0:00:15]} 28. c4 {[%clk 0:00:36]}  Nd4 {[%clk 0:00:04]} 29. Bxd4 {[%clk 0:00:28]}  cxd4 {[%clk 0:00:05]} 30. cxd5 {[%clk 0:00:28]}  exd5 {[%clk 0:00:05]} 31. Rxd4 {[%clk 0:00:18]}  Qe6 {[%clk 0:00:02]} 32. Nf2 {[%clk 0:00:14]}  Rxd4 {[%clk 0:00:02]} 33. Rh7 {[%clk 0:00:12]}  Bxf6 {[%clk 0:00:01]} 34. gxf6 {[%clk 0:00:12]}  Ke8 {[%clk 0:00:02]} 35. Rh8+ {[%clk 0:00:12]}  Kd7 {[%clk 0:00:02]} 36. Qb5+ {[%clk 0:00:12]}  Kc7 {[%clk 0:00:02]} 37. Qa6 {[%clk 0:00:12]}  Rxh8 {[%clk 0:00:02]} 38. Qxa7+ {[%clk 0:00:12]}  Kc6 {[%clk 0:00:03]} 39. Qa6 {[%clk 0:00:12]}  Rb8 {[%clk 0:00:02]} 40. Qa4+ {[%clk 0:00:11]}  Kb7 {[%clk 0:00:02]} 41. Nd3 {[%clk 0:00:10]}  Rxa4 {[%clk 0:00:02]} 42. Nc5+ {[%clk 0:00:09]}  bxc5 {[%clk 0:00:02]} 0-1


[Site "https://www.chess.com"]

[Event "Titled Tuesday Blitz April 05 Late 2022"]
[White "Baker, Chris W"]
[Black "Mohammadian, Mohammad"]
[WhiteFideId "401676"]
[BlackFideId "12566055"]
[WhiteElo "2139"]
[BlackElo "1544"]
[Result "1-0"]
[Round "10"]
[TimeControl "180+1"]
[Date "2022.04.06"]
[WhiteClock "0:01:47"]
[BlackClock "0:01:39"]

1. e4 {[%clk 0:03:00]}  e5 {[%clk 0:02:58]} 2. Nf3 {[%clk 0:03:00]}  Nc6 {[%clk 0:02:58]} 3. Bc4 {[%clk 0:03:00]}  Bc5 {[%clk 0:02:57]} 4. O-O {[%clk 0:03:00]}  Nf6 {[%clk 0:02:56]} 5. d4 {[%clk 0:03:00]}  Bxd4 {[%clk 0:02:52]} 6. Nxd4 {[%clk 0:02:59]}  Nxd4 {[%clk 0:02:52]} 7. Bg5 {[%clk 0:02:59]}  h6 {[%clk 0:02:50]} 8. Bh4 {[%clk 0:02:59]}  g5 {[%clk 0:02:49]} 9. f4 {[%clk 0:02:59]}  gxh4 {[%clk 0:02:43]} 10. fxe5 {[%clk 0:02:59]}  d5 {[%clk 0:02:32]} 11. exd5 {[%clk 0:02:43]}  Nxd5 {[%clk 0:02:21]} 12. Qxd4 {[%clk 0:02:40]}  c6 {[%clk 0:02:20]} 13. Nc3 {[%clk 0:02:37]}  Be6 {[%clk 0:02:19]} 14. Ne4 {[%clk 0:02:28]}  Qb6 {[%clk 0:02:16]} 15. Nd6+ {[%clk 0:02:24]}  Kd7 {[%clk 0:02:03]} 16. Qxb6 {[%clk 0:02:23]}  axb6 {[%clk 0:02:03]} 17. Bxd5 {[%clk 0:02:13]}  Bxd5 {[%clk 0:02:00]} 18. c4 {[%clk 0:02:05]}  Be6 {[%clk 0:01:52]} 19. Rad1 {[%clk 0:02:02]}  Kc7 {[%clk 0:01:50]} 20. a3 {[%clk 0:01:51]}  c5 {[%clk 0:01:47]} 21. Nxf7 {[%clk 0:01:48]}  Bxf7 {[%clk 0:01:39]} 22. Rxf7+ {[%clk 0:01:47]}  Kc6 {[%clk 0:01:39]} 23. Rd6# {[%clk 0:01:47]} 1-0


[Site "https://www.chess.com"]

[Event "Titled Tuesday Blitz April 05 Late 2022"]
[White "Buchenau, Frank"]
[Black "Jaferian, Koosha"]
[WhiteFideId "4604350"]
[BlackFideId "12507440"]
[WhiteElo "2459"]
[BlackElo "2541"]
[Result "1/2-1/2"]
[Round "10"]
[TimeControl "180+1"]
[Date "2022.04.06"]
[WhiteClock "0:00:16"]
[BlackClock "0:00:20"]

1. e4 {[%clk 0:02:56]}  c6 {[%clk 0:03:00]} 2. Nf3 {[%clk 0:02:55]}  d5 {[%clk 0:03:01]} 3. Nc3 {[%clk 0:02:55]}  Bg4 {[%clk 0:03:01]} 4. d4 {[%clk 0:02:55]}  e6 {[%clk 0:03:01]} 5. Bd3 {[%clk 0:02:54]}  Nf6 {[%clk 0:02:58]} 6. h3 {[%clk 0:02:53]}  Bxf3 {[%clk 0:02:58]} 7. Qxf3 {[%clk 0:02:53]}  dxe4 {[%clk 0:02:59]} 8. Nxe4 {[%clk 0:02:52]}  Qxd4 {[%clk 0:02:59]} 9. Nxf6+ {[%clk 0:02:25]}  Qxf6 {[%clk 0:02:59]} 10. Qg3 {[%clk 0:02:21]}  Be7 {[%clk 0:02:52]} 11. O-O {[%clk 0:02:13]}  O-O {[%clk 0:02:52]} 12. Qc7 {[%clk 0:02:07]}  Rd8 {[%clk 0:02:23]} 13. Qxb7 {[%clk 0:02:03]}  Nd7 {[%clk 0:02:24]} 14. Qxc6 {[%clk 0:01:55]}  Ne5 {[%clk 0:02:24]} 15. Qe4 {[%clk 0:01:54]}  Nxd3 {[%clk 0:02:19]} 16. cxd3 {[%clk 0:01:55]}  Rab8 {[%clk 0:02:17]} 17. Be3 {[%clk 0:01:50]}  Rxb2 {[%clk 0:02:09]} 18. Bxa7 {[%clk 0:01:48]}  Rd2 {[%clk 0:02:09]} 19. d4 {[%clk 0:01:46]}  Rd5 {[%clk 0:02:03]} 20. a4 {[%clk 0:01:40]}  Bd6 {[%clk 0:02:04]} 21. a5 {[%clk 0:01:37]}  Qg5 {[%clk 0:01:49]} 22. Bb6 {[%clk 0:01:30]}  Rb2 {[%clk 0:01:02]} 23. Rfc1 {[%clk 0:01:21]}  Qd2 {[%clk 0:00:56]} 24. Qf3 {[%clk 0:01:12]}  Rf5 {[%clk 0:00:54]} 25. Qa8+ {[%clk 0:01:11]}  Bf8 {[%clk 0:00:55]} 26. Rc8 {[%clk 0:00:46]}  Qxf2+ {[%clk 0:00:54]} 27. Kh1 {[%clk 0:00:46]}  h5 {[%clk 0:00:48]} 28. Rxf8+ {[%clk 0:00:45]}  Kh7 {[%clk 0:00:49]} 29. Rh8+ {[%clk 0:00:39]}  Kg6 {[%clk 0:00:49]} 30. Qe4 {[%clk 0:00:29]}  Re2 {[%clk 0:00:45]} 31. Qc6 {[%clk 0:00:23]}  Rd5 {[%clk 0:00:41]} 32. Rg1 {[%clk 0:00:21]}  h4 {[%clk 0:00:35]} 33. a6 {[%clk 0:00:20]}  Re1 {[%clk 0:00:35]} 34. Rxe1 {[%clk 0:00:18]}  Qxe1+ {[%clk 0:00:36]} 35. Kh2 {[%clk 0:00:18]}  Qg3+ {[%clk 0:00:36]} 36. Kh1 {[%clk 0:00:18]}  Qe1+ {[%clk 0:00:32]} 37. Kh2 {[%clk 0:00:18]}  Rf5 {[%clk 0:00:22]} 38. Qc2 {[%clk 0:00:17]}  Qg3+ {[%clk 0:00:22]} 39. Kg1 {[%clk 0:00:16]}  Qe1+ {[%clk 0:00:22]} 40. Kh2 {[%clk 0:00:16]}  Qg3+ {[%clk 0:00:19]} 41. Kg1 {[%clk 0:00:16]}  Qe1+ {[%clk 0:00:20]} 42. Kh2 {[%clk 0:00:16]} 1/2-1/2


[Site "https://www.chess.com"]